Cogmind - Beta 15 @@@ ROGUE MODE // 2025.07.10 @ 17:38:43 Player: Flufflewump Result: Self-destructed Performance ------------- Evolutions (2) 1000 Regions Visited (3) 600 Robots Destroyed (2) 10 Value Destroyed (92) 92 Prototype IDs (2) 40 Alien Tech Used (0) 0 Bonus (200) 200 TOTAL SCORE: 1942 Bonus ------- Pacifist 200 Cogmind --------- Core Integrity 438/550 Matter 300/300 Energy 265/265 System Corruption 0% Temperature Cool (46) Movement Core (250) Ox4 Location -8/Materials Parts ------- > --- POWER (2) -------- Improved Ion Engine > --- PROPULSION (4) --- (None) > --- UTILITY (3) ------ Small Storage Unit Signal Interpreter Improved Utility Shielding > --- WEAPON (2) ------- (None) > --- INVENTORY (8) ---- Ion Engine Light Treads Advanced Treads Improved Heat Sink Utility Shielding Shock Rifle Beam Rifle Flak Cannon Peak State ------------ > --- POWER ------------ Light Ion Engine Improved Ion Engine > --- PROPULSION ------- Aluminum Leg Aluminum Leg Aluminum Leg Carbon-fiber Leg > --- UTILITY ---------- Small Storage Unit Signal Interpreter Improved Utility Shielding > --- WEAPON ----------- Medium Laser Assault Rifle > --- INVENTORY -------- Light Treads Light Treads Advanced Treads Improved Heat Sink Utility Shielding Shock Rifle Beam Rifle Flak Cannon [Rating: 17] Favorites ----------- Power Ion Engine Engine Ion Engine Propulsion Aluminum Leg Leg Aluminum Leg Utility Small Storage Unit Device Improved Heat Sink Storage Small Storage Unit Processor Signal Interpreter Protection Utility Shielding Weapon Assault Rifle Energy Gun Medium Laser Ballistic Gun Assault Rifle Build | -11 -10 -10 -8 ------- Run | Yrd Mat Sub Mat Slots Evolved 4 | . . . 4 Power 1 | . . . 1 Propulsion 2 | . . . 2 Utility 1 | . . . 1 Weapon . | . . . . Parts Attached 10 | . 2 . 8 Power 3 | . 1 . 2 Engine 3 | . 1 . 2 Core . | . . . . Reactor . | . . . . Propulsion 3 | . . . 3 Treads . | . . . . Leg 3 | . . . 3 Wheel . | . . . . Hover . | . . . . Flight . | . . . . Utility 4 | . 1 . 3 Device 1 | . . . 1 Storage . | . . . . Processor 1 | . 1 . . Hackware . | . . . . Protection 2 | . . . 2 Artifact . | . . . . Weapon . | . . . . Energy Gun . | . . . . Energy Cannon . | . . . . Ballistic Gun . | . . . . Ballistic Cannon . | . . . . Launcher . | . . . . Special Weapon . | . . . . Impact Weapon . | . . . . Slashing Weapon . | . . . . Piercing Weapon . | . . . . Special Melee Weapon . | . . . . Unidentified Prototypes . | . . . . Parts Lost 7 | . . . 7 Power 1 | . . . 1 Propulsion 4 | . . . 4 Utility . | . . . . Weapon 2 | . . . 2 Highest Loss Streak 5 | . . . 5 To Critical Strikes . | . . . . Average Backups 4 | . 4 4 4 Power . | . 1 1 . Propulsion 1 | . 1 1 . Utility 1 | . . 1 1 Weapon 1 | . 1 1 1 Tool/Special . | . . . . Unused Backups 8 | . . . 8 Power . | . . . . Propulsion 5 | . . . 5 Utility . | . . . . Weapon 3 | . . . 3 Tool/Special . | . . . . Average Slot Usage (%) 93 | . 97 100 89 Engine 15 | . 14 14 16 Leg 28 | . 28 28 28 Storage 10 | . 14 14 9 Processor 10 | . 11 14 9 Protection 4 | . . . 7 Energy Gun 10 | . 14 14 9 Ballistic Gun 10 | . 14 14 9 Peak Build Rating 17 | . 7 7 17 Average Rating 9 | . 6 7 11 On Entrance 6 | 6 6 7 7 Naked Turns . | . . . . Heaviest Build 21 | 12 14 14 21 Greatest Support 45 | 20 20 20 45 Greatest Overweight (x) . | . . . . Average Overweight (x) . | . . . . Largest Inventory Capacity 8 | . 8 8 8 Average Capacity 8 | . 8 8 8 Most Carried 8 | . 7 5 8 Average Carried 4 | . 4 4 4 Final Capacity 8 | 8 8 8 8 Final Carried 8 | 6 4 5 8 Class Distribution -------------------- 100% | Mutant Dominant Class ---------------- Mutant | -10/Materials Mutant | -10/Subcaves Mutant | -8/Materials Resources | -11 -10 -10 -8 ----------- Run | Yrd Mat Sub Mat Matter Collected 308 | 200 20 . 88 Remotely . | . . . . Salvage Created 112 | . . . 112 Parts 5 | . . . 5 Haulers Intercepted . | . . . . Recyclers Shooed . | . . . . Parts Field Recycled . | . . . . Retrieved Matter . | . . . . Parts Self-Destructed 5 | . . 5 . Prevented . | . . . . Kills | -11 -10 -10 -8 ------- Run | Yrd Mat Sub Mat Combat Hostiles Destroyed 2 | . . . 2 Guns 2 | . . . 2 Classes Destroyed 2 | . . . 2 Grunt 1 | . . . 1 Sentry 1 | . . . 1 Best Kill Streak 1 | . . . 1 Combat Bots Only 1 | . . . 1 Max Kills in Single Turn 1 | . . . 1 Gunslinging . | . . . . Exploded . | . . . . Melee . | . . . . Uniques/NPCs Destroyed . | . . . . Combat | -11 -10 -10 -8 -------- Run | Yrd Mat Sub Mat Hostile Shots Fired 29 | . . 5 24 Missed 11 | . . 3 8 Hits 18 | . . 2 16 Projectile 18 | . . 2 16 AOE 2 | . . . 2 Critical Strikes 1 | . . . 1 Damage Taken 795 | . 19 41 735 Core 145 | . 9 24 112 Absorbed by Shields . | . . . . Core Remaining (%) 93 | 100 . 86 . Volleys Fired 12 | . . . 12 Largest 2 | . . . 2 Hottest 70 | . . . 70 Shots Fired 23 | . . . 23 Gun 23 | . . . 23 Cannon . | . . . . Launcher . | . . . . Special . | . . . . Kinetic 12 | . . . 12 Thermal 11 | . . . 11 Explosive . | . . . . Electromagnetic . | . . . . Robot Hit Streak 10 | . . . 10 Robot Miss Streak 1 | . . . 1 Penetration Max . | . . . . Secondary Targets . | . . . . Shots Hit Robots 19 | . . . 19 Core Hits 8 | . . . 8 Critical Kills . | . . . . Critical Parts Destroyed . | . . . . Critical Strikes 1 | . . . 1 Burn 1 | . . . 1 Melee Attacks . | . . . . Impact . | . . . . Slashing . | . . . . Piercing . | . . . . Sneak Attacks . | . . . . Combat Hostiles . | . . . . Follow-up Attacks . | . . . . Damage Inflicted 239 | . . . 239 Guns 239 | . . . 239 Cannons . | . . . . Explosions . | . . . . Melee . | . . . . Ramming . | . . . . Kinetic 126 | . . . 126 Thermal 113 | . . . 113 Explosive . | . . . . Electromagnetic . | . . . . Impact . | . . . . Slashing . | . . . . Piercing . | . . . . Highest Corruption . | . . . . Average Corruption . | . . . . Corruption Purged . | . . . . Corruption Blocked . | . . . . Overload Shots . | . . . . Overflow Damage . | . . . . Projectiles . | . . . . Explosions . | . . . . Melee . | . . . . Knockbacks . | . . . . Impact . | . . . . Kinetic . | . . . . Secondary . | . . . . Self-Inflicted Damage . | . . . . Shots . | . . . . Rammed . | . . . . Targets Rammed . | . . . . Kicked . | . . . . Crushed . | . . . . Highest Temperature 69 | . . . 69 Average Temperature 26 | . . . 26 Received Heat Transfer 117 | . 12 . 105 Siege Activations . | . . . . Martial Activations . | . . . . Shielding Activations . | . . . . Robots Disrupted . | . . . . Combat Hostiles . | . . . . Robots Corrupted . | . . . . Combat Hostiles . | . . . . Parts Fried . | . . . . Impact Corruptions . | . . . . Robots Melted . | . . . . Combat Hostiles . | . . . . Parts Melted 1 | . . . 1 Heat Transferred 407 | . . . 407 Parts Sabotaged . | . . . . Parts Stolen . | . . . . Parts Stripped . | . . . . Power Chain Reactions . | . . . . Alert | -11 -10 -10 -8 ------- Run | Yrd Mat Sub Mat Maximum Alert Level . | . . . . Low Security (%) 100 | . 100 . 100 Level 1 . | . . . . Level 2 . | . . . . Level 3 . | . . . . Level 4 . | . . . . Level 5 . | . . . . High Security . | . . . . Max Security . | . . . . Peak Influence 30 | . . . 30 Initial . | . . . . Average 3 | . . . 4 Influence Increases 75 | . . . 75 Destroy 0b10 Robot/C 40 | . . . 40 Destroy Leader 10 | . . . 10 Successful Hack 10 | . . . 10 Lose Combat Pursuer 15 | . . . 15 Influence Decreases 75 | . . . 75 Time Decay 68 | . . . 68 Lost Part 7 | . . . 7 Squads Dispatched 2 | . . . 2 Investigation . | . . . . Extermination . | . . . . Reinforcement 2 | . . . 2 Assault . | . . . . Garrison . | . . . . Intercept . | . . . . Searches Triggered . | . . . . Construction Impeded . | . . . . Haulers Reinforced . | . . . . Active Scanning Responses . | . . . . Cargo Convoy Interrupts . | . . . . Stealth | -11 -10 -10 -8 --------- Run | Yrd Mat Sub Mat Distress Signals . | . . . . Communications Jammed . | . . . . Distress Signals . | . . . . Times Spotted 12 | . 1 1 10 Peak Tracking Total 4 | . 1 1 4 Tactical Retreats 1 | . . . 1 Traps | -11 -10 -10 -8 ------- Run | Yrd Mat Sub Mat Traps Triggered . | . . . . Indirectly . | . . . . Trap Hack Attempts . | . . . . Triggered . | . . . . Disarmed . | . . . . Reprogrammed . | . . . . Reused . | . . . . Traps Extracted . | . . . . Installed . | . . . . Triggered . | . . . . Machines | -11 -10 -10 -8 ---------- Run | Yrd Mat Sub Mat Machines Disabled . | . . . . Max in Single Turn . | . . . . Machines Repaired . | . . . . Machines Dismantled . | . . . . Machines Sabotaged . | . . . . Overloaded Fab Kills . | . . . . Hacking | -11 -10 -10 -8 --------- Run | Yrd Mat Sub Mat Machines Accessed 3 | . 1 . 2 Terminals 2 | . 1 . 1 Fabricators . | . . . . Repair Stations . | . . . . Recycling Units . | . . . . Scanalyzers 1 | . . . 1 Garrison Access . | . . . . Total Hacks 8 | . 2 . 6 Successful 5 | . . . 5 Failed 3 | . 2 . 1 Catastrophic . | . . . . Database Lockouts . | . . . . Manual 3 | . . . 3 Terminals 6 | . 2 . 4 Fabricators . | . . . . Repair Stations . | . . . . Recycling Units . | . . . . Scanalyzers 2 | . . . 2 Garrison Access . | . . . . Terminal Hacks 3 | . . . 3 Prototype ID Bank 1 | . . . 1 Locate Traps 1 | . . . 1 Zone Layout 1 | . . . 1 Fabricator Hacks . | . . . . Repair Station Hacks . | . . . . Recycling Unit Hacks . | . . . . Scanalyzer 2 | . . . 2 Insert Component 1 | . . . 1 Analyze 1 | . . . 1 Garrison Access Hacks . | . . . . Unauthorized Hacks . | . . . . Terminals . | . . . . Fabricators . | . . . . Repair Stations . | . . . . Recycling Units . | . . . . Scanalyzers . | . . . . Garrison Access . | . . . . Data Cores Recovered . | . . . . Used . | . . . . Hacking Detections 2 | . 1 . 1 Full Trace Events . | . . . . Feedback Events . | . . . . Feedback Blocked . | . . . . Robot Schematics Acquired . | . . . . Robots Built . | . . . . Authchips . | . . . . Time . | . . . . Total Robot Build Rating . | . . . . Part Schematics Acquired 1 | . . . 1 Parts Built . | . . . . Authchips . | . . . . Time . | . . . . Total Part Build Rating . | . . . . Parts Repaired . | . . . . Time . | . . . . Parts Recycled . | . . . . Recycled Matter . | . . . . Retrieved Matter . | . . . . Retrieved Components . | . . . . Parts Scanalyzed 1 | . . . 1 Part Schematics Acquired 1 | . . . 1 Parts Damaged . | . . . . Bothacking | -11 -10 -10 -8 ------------ Run | Yrd Mat Sub Mat Used RIF Installer . | . . . . Robots Hacked . | . . . . Non-combat . | . . . . Combat . | . . . . Robot Hacks Applied . | . . . . Relay Couplers Released . | . . . . Fabnet Peak Effective % . | . . . . Robots Rewired . | . . . . Allies Hacked . | . . . . Hacks Repelled . | . . . . Allies | -11 -10 -10 -8 -------- Run | Yrd Mat Sub Mat Total Allies . | . . . . Largest Group . | . . . . Highest-Rated Group . | . . . . Highest-Rated Ally . | . . . . Total Orders . | . . . . Ally Attacks . | . . . . Total Damage . | . . . . Kills . | . . . . Allies Corrupted . | . . . . Allies Melted . | . . . . Intel | -11 -10 -10 -8 ------- Run | Yrd Mat Sub Mat Active Infowar (turns) . | . . . . Robot Analysis Total . | . . . . Derelict Logs Recovered . | . . . . Drone Launches . | . . . . Drone Recoveries . | . . . . Exploration | -11 -10 -10 -8 ------------- Run | Yrd Mat Sub Mat Turns Passed 776 | . 126 160 490 Spaces Moved 486 | 1 83 88 314 Core . | . . . . Treads . | . . . . Legs 486 | 1 83 88 314 Wheels . | . . . . Hover . | . . . . Flight . | . . . . Fastest Speed 120 | 120 120 120 120 Average Speed 120 | 120 120 120 120 Slowest Speed 120 | 120 120 120 120 Overloaded Moves . | . . . . Propulsion Burnouts . | . . . . Robots Hopped . | . . . . Potential Cave-ins . | . . . . Cave-ins Triggered . | . . . . Exploration Rate (%) 13 | 2 22 9 20 Regions Visited 3 Branch Regions 1 Pre-discovered Areas . | . . . . Known Exits Taken 2 | . 1 1 . Unknown Exits Taken 1 | 1 . . . Scrap Searched . | . . . . Spaces Dug . | . . . . Terrain Destroyed . | . . . . Melee . | . . . . Projectile . | . . . . AOE . | . . . . Terrain Rammed . | . . . . Walls Destroyed . | . . . . Machines Disabled . | . . . . Actions | -11 -10 -10 -8 --------- Run | Yrd Mat Sub Mat Total 658 | . 111 142 405 Wait 130 | . 19 54 57 Move 483 | . 82 87 314 Hop . | . . . . Pick Up 10 | . 2 1 7 Fast Attach 6 | . 2 . 4 Attach 4 | . . . 4 Detach 4 | . 1 . 3 Swap . | . . . . Drop 9 | . 5 . 4 Fire 12 | . . . 12 Melee . | . . . . Ram . | . . . . Kick . | . . . . Crush . | . . . . Escape Stasis . | . . . . Rewire . | . . . . Trap . | . . . . Miscellaneous . | . . . . Route ------- -11/Scrapyard -10/Materials (discovered 2 exits: [*Min] / *Sub) -10/Subcaves -8/Materials History --------- Turn | Location | Event 1 | -11/Scrapyard | Discovered new exit (range 0) 1 | -11/Scrapyard | Entered Materials 2 | -10/Materials | Met a group of wandering Federalists 94 | -10/Materials | Discovered new exit (range 14) 121 | -10/Materials | Discovered new exit (range 7) 126 | -10/Materials | Identified exit to Subcaves 127 | -10/Materials | Entered Subcaves 127 | -10/Subcaves | Accompanied by 1 ally 128 | -10/Subcaves | Continued accompanying wandering Federalists (5) 128 | -10/Subcaves | Approached by a straggling Scientist 269 | -10/Subcaves | Discovered new exit (range 15) 277 | -10/Subcaves | Lost 4 allies 286 | -10/Subcaves | Identified exit to Materials 287 | -10/Subcaves | Entered Materials 287 | -8/Materials | Evolved 4 slots: Power x1, Propulsion x2, Utility x1 309 | -8/Materials | Build established: Mutant 777 | -8/Materials | Self-destructed Last Messages --------------- 00716_ Fusion Modulator explodes. 00716_ Aluminum Leg destroyed. 00716_ Fusion Modulator explodes. 00716_ R-06 Scavenger destroyed. 00716_ Aluminum Leg destroyed. 00723_ ALERT: Hostiles spotted, dispatching reinforcements to Terminal M010. 00749_ R-06 Scavenger collects Lgt. Treads. 00752_ R-06 Scavenger collects Aluminum Leg. 00762_ H-61 Shepherd calls for reinforcements. 00762_ ALERT: Hostile activity reported, dispatching reinforcements to area. 00762_ Knocked back. 00764_ Carbon-fiber Leg destroyed. 00766_ Penetrated by Slug. 00773_ Med. Laser destroyed. 00774_ Lgt. Ion Engine destroyed. 00777_ Assault Rifle destroyed. 00777_ Aluminum Leg destroyed. 00777_ Knocked back. Map ----- +----------------------------------------------------+ | # #?????????????????? | | # #?????????????????? | | # #?????????????????? | | ########+###############???????????? | | ####??# # "" #???????????? | | ??????# # ""S """ #???????????? | | ??????# # "" """ #???????????? | | ??????# """ """ # """ #???????????? | | ??????# """ """ # #???????????? | | ??????# """ """ #####+#####???? #???? | | ??????# ### ##### #????? | | ??????# +% #????? | | ??????############# #????? | | ###???????????????# ###########????? | | #???????????????## ### ###????? | | #??????########### # ! [ #????? | | #??????# # # ;#????? | | #??????# # # % ;##???? | | #??????# """ """ # # ; #???? | | #??????# """ """ + # ; #???? | | #??????# """ """ # + ; #???? | | #??????# # # ;#????? | | #??????# % #gg# ;#????? | | ###??????# ]# ;###+ ;#????? | | ?????????########### % ;;###????? | | ???????????????????# % @ %; ! #? | | ???????????????????#####; %## """ #? | | ???????????????????????## #? """ #? | | ????????????????????????# #??""" #? | | ????????????????????????# #?? ??? ?? | | ????????????????????????# ??? ?????? | | ????????????????????????+ ##???T?????? | | ????????????????????????; #??????????? | | ????????????????????????# #??????????? | | ???????????????????????? ??????????? | | ???????????????????????? ??????????? | | ???????????????????????? H ??????????? | | ???????????????????????? ??????????? | | ????????????????????????#+###?????????? | | ??????????????????????????????????????? | | ??????????????????????????????????????? | | ??????????????????????????????????????? | | ??????????????????????????????????????? | | ??????????????????????????????????????? | | ??????????????????????????????????????? | | ??????????????????????????????????????? | | ??????????????????????????????????????? | | ??????????????????????????????????????? | | | | | +----------------------------------------------------+ Best States ------------- Heat Dissipation 31 Energy Generation 17 Energy Capacity 290 Matter Stores 300 Matter Capacity 300 Sight Range 16 Terrain Scan Density 10 Utility Shielding 66 Evasion (%) 55 Item Schematics ----------------- Imp. Heat Sink | -8/Materials | Scanalyzed Robot Schematics ------------------ None Fabricated ------------ Nothing Repaired ---------- Nothing Alien Tech Used ----------------- None Achievements -------------- None Challenges ------------ None Game ------ Seed EnhancedScanMatrix Manual? 0 Play Time 00:08:50 Cumulative 24.6 hours Start 2025.07.10 @ 17:29:44 End 2025.07.10 @ 17:38:43 Sessions 3 Manual Loads 0 Difficulty Rogue Special Mode None Game No. 25 Rogue 25 Adventurer 0 Explorer 0 Win Type - Total 0 Types 0/0/0/0/0/0/0/0/0/0 Lore% 20 Gallery% 28 Achievement% 28 Wizard Run 0 Options --------- Layout 0 ASCII 1 Keyboard 1 Movement Vi Keybinds 1 Fullscreen 1 Font 18/SmallcapsGlow Map View 76x50 Zoom Use 0% Tactical HUD 1 Map Filters NONE Filters NONE Steam 1 RUN: 9380ea0f-a623-4b8c-b780-57f399ac5788